bitfinex/quotes_ETHUSD_20241103
["timestamp","ask_amount","ask_price","bid_price","bid_amount"]
[1730668196186,0.09168727,2468.2,2467.8,3.7084546]
[1730668196359,0.09168727,2468.2,2467.9,3.64672]
[1730668197191,0.09168727,2468.2,2467.8,7.3553346]
[1730668197339,0.09168727,2468.2,2467.9,3.54678]
[1730668197540,0.09168727,2468.2,2467.8,3.7084546]
[1730668197541,0.09168727,2468.2,2468.0,3.64665]
[1730668198383,0.09168727,2468.2,2467.8,3.7084546]
[1730668198987,1.39718383,2468.2,2467.9,3.64678]
[1730668199144,1.31151048,2468.1,2467.9,3.64678]
[1730668199507,1.31151048,2468.1,2467.8,3.7084546]
[1730668199683,1.31151048,2468.1,2467.8,7.3553446]
[1730668200485,1.31151048,2468.1,2467.9,3.64681]
[1730668200853,1.31151048,2468.1,2466.6,0.0615846]
[1730668200854,0.01,2467.7,2466.6,0.0615846]
[1730668201052,3.64768,2467.4,2466.8,3.6484]
[1730668201256,0.7596,2467.5,2466.8,3.64833]
[1730668201257,1.35562318,2467.3,2466.8,3.64833]
[1730668201495,1.26393591,2467.3,2467.2,3.64785]
[1730668205191,1.26393591,2467.3,2467.2,7.19785]
[1730668205703,1.26393591,2467.3,2467.2,7.28890193]
[1730668205988,1.26393591,2467.3,2467.2,7.20785]
[1730668206350,1.26393591,2467.3,2467.2,7.21785]
[1730668206759,0.4185937,2467.3,2467.2,7.99415]
[1730668208994,0.09168727,2468.3,2467.9,3.64675]
[1730668209290,0.09168727,2468.3,2467.9,7.2935]
[1730668209455,1.3078157,2468.3,2467.9,3.64675]
[1730668209884,1.3078157,2468.3,2467.9,3.64674]
[1730668210082,1.3078157,2468.3,2467.9,7.29346]
[1730668210401,1.3078157,2468.3,2467.9,3.64672]
[1730668210605,1.21612843,2468.3,2468.1,3.6465]
[1730668210927,1.21612843,2468.3,2468.2,3.34368]
[1730668212038,1.21612843,2468.3,2468.2,3.42470151]
[1730668212174,1.21612843,2468.3,2468.2,3.34368]
[1730668213122,1.21612843,2468.3,2468.2,3.34368]
[1730668214426,1.21612843,2468.3,2468.2,7.75099751]
[1730668214584,1.21612843,2468.3,2468.2,7.66998]
[1730668214976,1.21612843,2468.3,2468.2,6.34368]
[1730668215181,3.64652,2468.1,2467.4,3.64747]
[1730668215376,3.73837727,2468.0,2467.4,3.64747]
[1730668215610,3.64689,2467.9,2467.4,3.64747]
[1730668215808,0.09168727,2467.8,2467.4,3.64747]
[1730668216285,0.09168727,2467.8,2467.5,3.64733]
[1730668216483,0.09168727,2467.9,2467.5,3.64733]
[1730668217019,0.09168727,2467.9,2467.5,3.6474]
[1730668219098,0.09168727,2467.9,2467.5,3.64741]
[1730668219678,0.09168727,2467.9,2467.6,3.64725]
[1730668220717,1.21078421,2468.0,2467.8,3.64683]
[1730668220881,0.86698727,2468.2,2467.8,3.64683]
[1730668221216,0.86698727,2468.2,2467.5,0.0810445]
[1730668221217,0.09168727,2468.5,2468.1,7.29288]
[1730668221426,0.09168727,2468.5,2468.2,3.6463]
[1730668221625,0.09168727,2468.5,2468.3,3.6462]
[1730668221782,0.7753,2468.6,2468.3,3.64619]
[1730668222204,0.7753,2468.6,2468.3,3.64623]
[1730668222557,0.09168727,2468.8,2468.5,3.64582]
[1730668222558,0.7942,2468.8,2468.5,3.64582]
[1730668222733,0.7942,2468.8,2468.4,3.646]
[1730668222935,0.7942,2468.8,2468.5,3.64582]
[1730668223105,0.7942,2468.8,2468.4,3.646]
[1730668223305,0.7942,2468.8,2468.6,3.64578]
[1730668223516,0.09168727,2468.9,2468.6,7.29146]
[1730668223720,0.09168727,2468.9,2468.6,3.64568]
[1730668224338,0.09168727,2468.9,2468.6,7.29139]
[1730668224645,0.09168727,2468.9,2468.6,3.64568]
[1730668224847,0.09168727,2468.9,2468.6,7.29138]
[1730668225017,0.09168727,2468.9,2468.6,3.64568]
[1730668225208,0.09168727,2468.9,2468.6,7.2914]
[1730668225411,0.09168727,2468.9,2468.6,3.64568]
[1730668225611,0.09168727,2468.9,2468.6,7.29139]
[1730668225813,2.0986035,2469.0,2468.6,7.29137]
[1730668226031,2.0986035,2469.0,2468.6,3.64568]
[1730668226821,2.00691623,2469.0,2468.7,3.64556]
[1730668227027,1.21271623,2469.0,2468.6,0.08101158]
[1730668227223,1.21271623,2469.0,2468.8,3.64534]
[1730668227635,1.21271623,2469.0,2468.9,3.64534]
[1730668227967,1.21271623,2469.0,2468.9,4.47014]
[1730668228260,1.21271623,2469.0,2468.9,7.47014]
[1730668228490,0.88588727,2469.5,2469.3,3.64468]
[1730668228631,0.09168727,2469.7,2469.3,7.28934]
[1730668228829,0.09168727,2469.7,2469.3,3.64466]
[1730668228830,0.88588727,2469.7,2469.3,3.64466]
[1730668229047,1.703275,2469.7,2469.3,3.64466]
[1730668229828,0.7942,2469.7,2469.3,3.64465]
[1730668230167,0.7942,2469.7,2469.2,0.08099222]
[1730668230168,0.09168727,2469.8,2469.6,3.6443]
[1730668230374,0.7942,2470.0,2469.6,3.6443]
[1730668230375,0.09168727,2469.9,2469.6,3.6443]
[1730668230527,0.09168727,2469.9,2469.5,3.64442]
[1730668231045,0.09168727,2469.9,2469.4,3.6445]
[1730668231046,0.09168727,2469.9,2469.6,3.6443]
[1730668231778,0.09168727,2469.9,2469.7,3.6441]
[1730668231926,0.7942,2470.0,2469.7,3.71954524]
[1730668232125,0.09168727,2470.1,2469.8,3.64392]
[1730668232330,0.66668763,2470.1,2469.8,3.64392]
[1730668232558,0.66668763,2470.1,2469.9,0.07605791]
[1730668232939,0.66668763,2470.1,2469.7,3.64408]
[1730668233141,0.66668763,2470.1,2470.0,0.07605791]
[1730668233340,0.66668763,2470.1,2469.7,3.64408]
[1730668233561,0.66668763,2470.1,2470.0,0.07605791]
[1730668233768,0.66668763,2470.1,2469.8,3.64401]
[1730668233950,0.66668763,2470.1,2470.0,0.07605791]
[1730668234146,0.66668763,2470.1,2469.8,3.64401]
[1730668234383,0.66668763,2470.1,2470.0,0.07605791]
[1730668234993,0.57500036,2470.1,2469.9,3.64383]
[1730668235179,1.31243363,2470.2,2470.0,0.07605791]
[1730668236869,0.09168727,2470.2,2470.0,0.07605791]
[1730668237071,0.09168727,2470.2,2469.9,3.64384]
[1730668237311,0.09168727,2470.2,2470.1,0.07605791]
[1730668237499,0.09168727,2470.2,2469.9,3.64384]
[1730668237674,0.09168727,2470.2,2470.1,0.07605791]
[1730668237996,0.09168727,2470.2,2469.9,3.64384]
[1730668238196,0.09168727,2470.2,2470.1,0.07605791]
[1730668238669,0.09168727,2470.2,2469.9,3.64384]
[1730668238875,0.09168727,2470.2,2470.1,0.07605791]
[1730668239086,0.09168727,2470.2,2469.9,3.64384]
[1730668239406,0.09168727,2470.2,2470.1,0.07605791]
[1730668239559,0.09168727,2470.2,2469.9,3.64384]
[1730668240202,0.09168727,2470.2,2470.0,0.07605791]
[1730668243124,0.09168727,2470.2,2470.0,3.71970791]
[1730668243427,0.09168727,2470.2,2470.0,0.07605791]
[1730668243979,0.09168727,2470.2,2469.8,3.64393]
[1730668244174,0.09168727,2470.2,2470.1,0.07583781]
[1730668244416,0.09168727,2470.2,2469.9,3.64382]
[1730668244622,0.09168727,2470.2,2470.1,0.07583781]
[1730668245218,0.09168727,2470.2,2469.9,3.64382]
[1730668245433,0.09168727,2470.2,2470.1,0.07583781]
[1730668245626,0.09168727,2470.2,2469.9,3.64382]
[1730668245627,0.7942,2470.3,2470.0,3.64362]
[1730668245928,0.09168727,2470.2,2470.1,0.07583781]
[1730668246800,0.09168727,2470.2,2469.9,3.64382]
[1730668247017,0.09168727,2470.2,2470.1,0.07583781]
[1730668247228,0.544605,2470.2,2469.8,3.644]
[1730668247383,0.544605,2470.2,2470.1,0.07583781]
[1730668247582,0.544605,2470.2,2469.9,3.64385]
[1730668248095,0.544605,2470.2,2470.0,0.07583781]
[1730668248482,0.09168727,2470.2,2470.0,3.71954781]
[1730668248685,0.8294,2470.5,2470.1,3.64357]
[1730668249025,0.8294,2470.5,2470.2,3.64342]
[1730668249235,0.8294,2470.5,2470.2,7.28674]
[1730668249380,0.8294,2470.5,2470.3,0.07583781]
[1730668250791,0.8294,2470.5,2470.3,3.71910781]
[1730668251018,0.8294,2470.5,2470.3,0.07583781]
[1730668252427,3.73481727,2470.4,2470.3,0.07583781]
[1730668252627,0.09168727,2470.4,2470.0,3.64369]
[1730668252970,0.09168727,2470.4,2470.1,0.07557851]
[1730668253143,0.09168727,2470.4,2470.1,3.71914851]
[1730668253344,0.09168727,2470.4,2470.1,7.36264851]
[1730668253862,0.92108727,2470.5,2470.3,3.64328]
[1730668254034,4.56300727,2470.7,2470.4,0.07544494]
[1730668254368,0.82056173,2470.6,2470.2,3.64332]
[1730668254536,0.09168727,2470.5,2470.4,3.64313]
[1730668254722,0.09168727,2470.5,2470.3,3.64325]
[1730668254723,0.8286,2470.9,2470.3,0.7605]
[1730668254928,0.09168727,2471.0,2470.6,3.64274]
[1730668255167,0.09168727,2471.0,2470.8,3.64244]
[1730668256427,0.09168727,2471.0,2470.6,3.64271]
[1730668256625,4.554403,2471.0,2470.4,3.64302]
[1730668256829,4.554403,2471.0,2470.3,0.7605]
[1730668257049,0.912123,2471.0,2470.3,0.7605]
[1730668257264,0.912123,2471.0,2470.6,3.6428]
[1730668258564,0.912123,2471.0,2470.7,3.64264]
[1730668258565,0.09168727,2471.0,2470.7,3.64264]
[1730668258883,3.73379727,2471.1,2470.6,3.64283]
[1730668259645,0.8286,2470.8,2470.4,3.64311]
[1730668259877,0.92028727,2470.8,2470.3,4.40367]
[1730668260079,0.92028727,2470.8,2470.4,3.64313]
[1730668260603,0.92028727,2470.8,2470.5,3.64297]
[1730668260810,0.8286,2470.8,2470.6,3.64283]
[1730668261762,0.8286,2470.8,2470.5,3.64297]
[1730668261971,0.8286,2470.8,2470.4,3.64312]
[1730668262600,0.8286,2470.8,2470.3,4.40365]
[1730668262783,0.8286,2470.8,2470.6,3.64283]
[1730668263000,0.09168727,2471.1,2470.4,0.08095225]
[1730668263333,0.8286,2471.2,2470.8,3.64254]
[1730668263478,0.8286,2471.2,2471.0,3.64223]
[1730668264383,0.8286,2471.2,2470.9,3.64238]
[1730668264794,0.09168727,2471.3,2471.1,3.64203]
[1730668265331,1.27424629,2471.5,2471.2,3.64183]
[1730668265481,1.27424629,2471.5,2471.2,3.64195]
[1730668265824,1.27424629,2471.5,2471.3,3.6418]
[1730668266423,1.27424629,2471.5,2471.3,3.64172]
[1730668266718,3.64195,2471.2,2471.1,0.08092844]
[1730668266929,0.808,2471.2,2470.6,3.64271]
[1730668267227,3.73389727,2471.1,2470.6,3.64271]
[1730668267430,7.37610727,2471.1,2470.6,3.64271]
[1730668267724,3.73389727,2471.1,2470.6,3.64271]
[1730668267889,3.73389727,2471.1,2470.3,0.7964]
[1730668267890,0.09168727,2471.1,2470.7,3.64259]
[1730668268094,0.09168727,2471.1,2470.5,3.64291]
[1730668268095,0.910043,2471.1,2470.5,3.64291]
[1730668268305,3.64227,2471.0,2470.6,3.64283]
[1730668268614,0.09168727,2470.9,2470.5,3.64296]
[1730668268914,0.09168727,2470.9,2470.6,0.06717275]
[1730668272680,0.09168727,2471.1,2470.8,3.64252]
[1730668273018,0.09168727,2471.1,2470.7,3.64267]
[1730668273244,0.09168727,2471.2,2470.9,3.64237]
[1730668273741,0.09168727,2471.2,2471.0,0.06717275]
[1730668273884,2.08224629,2471.5,2471.1,0.7964]
[1730668273885,0.09168727,2471.4,2471.1,0.7964]
[1730668274084,1.27424629,2471.5,2471.4,3.64166]
[1730668274604,1.27424629,2471.5,2471.4,3.70883275]
[1730668275580,1.27424629,2471.5,2471.4,0.06717275]
[1730668276001,1.27424629,2471.5,2471.3,3.6418]
[1730668276299,1.27424629,2471.5,2471.4,0.06493366]
[1730668276544,1.27424629,2471.5,2471.4,3.70659366]
[1730668276819,1.27424629,2471.5,2471.4,0.06493366]
[1730668277007,1.27424629,2471.5,2471.4,3.70659366]
[1730668279597,5.72375629,2471.5,2471.4,0.06493366]
[1730668280064,5.72375629,2471.5,2470.7,4.43899]
[1730668280065,3.64202,2471.2,2470.7,4.43899]
[1730668280221,4.91575629,2471.5,2471.4,0.06228994]
[1730668280536,4.91575629,2471.5,2470.5,3.64285]
[1730668280537,3.64231,2471.0,2470.5,3.64285]
[1730668280736,3.64225,2471.0,2470.5,7.28575]
[1730668281039,3.64225,2471.0,2470.6,0.06013918]
[1730668281403,4.45023,2471.1,2470.6,0.06013918]
[1730668281602,3.64229,2471.0,2470.6,0.06013918]
[1730668281896,0.809252,2471.0,2470.6,3.70294918]
[1730668282346,0.09168727,2470.9,2470.6,3.70294918]
[1730668285442,0.09168727,2470.9,2470.6,0.06013918]
[1730668285845,0.09168727,2471.0,2470.6,0.06013918]
[1730668286013,0.09168727,2471.0,2470.8,3.64245]
[1730668286350,0.09168727,2471.2,2471.0,0.7627]
[1730668286558,1.27424629,2471.5,2471.3,3.64171]
[1730668287148,1.27424629,2471.5,2471.4,3.64166]
[1730668287650,1.27424629,2471.5,2471.4,3.70179918]
[1730668290155,1.27424629,2471.5,2471.4,4.46449918]
[1730668292030,1.22424629,2471.5,2471.4,4.46449918]
[1730668295207,1.22424629,2471.5,2471.4,3.70179918]
[1730668296347,1.22424629,2471.5,2471.4,0.06013918]
[1730668300053,1.22424629,2471.5,2471.4,3.70179918]
[1730668300657,1.22424629,2471.5,2471.4,0.06013918]
[1730668302312,5.43671265,2471.5,2471.4,0.06013918]
[1730668302477,4.45849,2471.4,2470.9,3.64227]
[1730668302672,0.09168727,2471.3,2470.9,3.64227]
[1730668302863,0.09168727,2471.3,2471.0,0.05828704]
[1730668303566,4.67520063,2471.3,2471.0,0.05828704]
[1730668303974,3.64198,2471.2,2470.7,3.64258]
[1730668304170,0.09168727,2471.1,2470.7,3.64258]
[1730668304570,0.09168727,2471.1,2470.7,7.28519]
[1730668304776,0.09168727,2471.1,2470.8,3.64254]
[1730668305202,0.09168727,2471.2,2470.8,3.64254]
[1730668305502,0.09168727,2471.2,2470.9,3.64238]
[1730668306295,0.09168727,2471.2,2471.0,3.64214]
[1730668306474,0.09168727,2471.3,2471.0,3.64214]
[1730668307296,0.09168727,2471.3,2470.9,3.64239]
[1730668308910,0.8168,2471.2,2470.4,0.06073381]
[1730668309112,0.8168,2470.4,2469.7,1.24158635]
[1730668309302,0.09168727,2470.3,2469.8,0.28902106]
[1730668309614,0.09168727,2470.3,2470.0,3.64364]
[1730668309911,0.09168727,2470.3,2470.0,7.28729]
[1730668310209,0.09168727,2470.3,2470.0,7.28728]
[1730668310511,0.09168727,2470.3,2470.0,3.64364]
[1730668310712,0.09168727,2470.3,2470.0,4.03690611]
[1730668312819,0.09168727,2470.5,2470.0,1.14936611]
[1730668313109,0.09168727,2470.5,2470.1,3.64357]
[1730668313473,0.09168727,2470.5,2470.3,3.64326]
[1730668313914,0.09168727,2470.6,2470.3,3.64326]
[1730668314098,0.09168727,2470.6,2470.4,0.04881603]
[1730668316630,0.09168727,2470.6,2470.4,3.69187603]
[1730668318493,0.09168727,2470.6,2470.4,0.04881603]
[1730668322941,4.9137128,2470.9,2470.4,4.44796603]
[1730668322942,1.2713128,2470.9,2470.4,4.44796603]
[1730668323226,3.64276,2470.7,2470.4,0.04881603]
[1730668323434,0.7773,2470.5,2470.4,0.04881603]
[1730668323813,0.7773,2470.5,2470.1,3.6435]
[1730668324015,0.09168727,2470.4,2470.1,3.6435]
[1730668324218,0.09168727,2470.4,2469.9,7.39996]
[1730668324219,3.73483727,2470.4,2469.9,7.39996]
[1730668324537,3.73483727,2470.4,2470.0,3.64372]
[1730668324838,3.73483727,2470.4,2469.9,3.7561]
[1730668324839,3.73483727,2470.4,2469.9,0.7561]
[1730668325058,3.73483727,2470.4,2469.8,3.64398]
[1730668325059,3.64337,2470.3,2469.8,3.64398]
[1730668325338,3.73512727,2470.2,2469.8,3.64398]
[1730668325703,0.09168727,2470.2,2469.8,3.64398]
[1730668326048,0.7773,2470.1,2469.6,3.6442]
[1730668326339,3.64396,2469.9,2469.1,0.7561]
[1730668326543,0.09168727,2469.8,2469.4,3.64453]
[1730668326753,0.09168727,2469.8,2469.5,3.6444]
[1730668326902,0.09168727,2470.0,2469.6,4.44231]
[1730668327104,0.09168727,2470.0,2469.7,3.64406]
[1730668328513,0.09168727,2470.0,2469.8,3.644]
[1730668328658,0.09168727,2470.3,2469.8,3.64392]
[1730668329100,0.09168727,2470.3,2469.9,0.04294516]
[1730668329257,0.09168727,2470.3,2470.2,3.64342]
[1730668329459,0.91228727,2470.7,2470.3,3.64321]
[1730668329696,0.91228727,2470.7,2470.3,7.28639]
[1730668329863,0.91228727,2470.7,2470.4,0.04294516]
[1730668332710,0.09168727,2470.9,2470.4,0.04294516]
[1730668332871,0.09168727,2471.0,2470.6,3.64269]
[1730668333073,0.09168727,2471.0,2470.7,4.086689]
[1730668333403,0.09168727,2471.0,2470.8,3.64254]
[1730668333780,0.09168727,2471.0,2470.9,0.04298033]
[1730668334600,1.76431993,2471.1,2470.9,0.04298033]
[1730668335016,1.76431993,2471.1,2470.9,3.68534033]
[1730668336278,1.76431993,2471.1,2470.9,0.04298033]
[1730668336478,0.09168727,2471.0,2470.9,0.04298033]
[1730668336697,1.76431993,2471.1,2470.9,3.68537033]
[1730668337783,1.76431993,2471.1,2470.9,3.68533033]
[1730668338973,1.76431993,2471.1,2470.9,0.04298033]
[1730668338974,0.09168727,2471.0,2470.9,0.04298033]
[1730668340487,0.09168727,2471.0,2470.9,3.68537033]
[1730668341203,1.76431993,2471.1,2470.9,3.68537033]
[1730668341818,0.09168727,2471.0,2470.9,3.68537033]
[1730668342280,0.09168727,2471.0,2470.9,0.04298033]
[1730668343676,0.09168727,2471.0,2470.6,3.64283]
[1730668344180,0.09168727,2471.0,2470.7,0.04280053]
[1730668344382,0.76863627,2471.0,2470.7,0.04280053]
[1730668344801,4.42137,2470.9,2470.4,3.64312]
[1730668345120,0.09168727,2470.8,2470.4,3.64312]
[1730668347234,0.09168727,2470.8,2470.5,3.64297]
[1730668347416,0.7789,2470.9,2470.3,3.0809551]
[1730668347417,0.09168727,2470.9,2470.3,3.0809551]
[1730668347614,0.09168727,2470.9,2470.6,3.64274]
[1730668348254,0.09168727,2470.9,2470.3,3.0]
[1730668348542,1.76431993,2471.1,2470.7,3.64261]
[1730668348543,0.09168727,2471.0,2470.7,3.64261]
[1730668348700,0.09168727,2471.0,2470.8,3.64253]
[1730668350324,0.09168727,2471.0,2470.7,3.64261]
[1730668350807,0.09168727,2471.0,2470.9,3.64239]
[1730668351321,1.76431993,2471.1,2471.0,3.64225]
[1730668351901,0.09168727,2471.2,2471.0,3.64225]
[1730668351902,0.09168727,2471.2,2471.1,3.6421]
[1730668352123,0.0115846,2471.5,2471.1,3.6421]
[1730668352124,0.10327187,2471.5,2471.1,3.6421]
[1730668355737,0.10327187,2471.5,2471.0,3.64225]
[1730668355937,0.10327187,2471.5,2470.7,4.45075]
[1730668355938,0.7789,2471.4,2470.7,4.45075]
[1730668356158,3.73360727,2471.3,2470.8,3.64253]
[1730668356735,3.73360727,2471.3,2470.7,4.45075]
[1730668356936,3.64203,2471.2,2470.7,7.28526]
[1730668357158,2.0502128,2471.4,2470.6,3.64282]
[1730668357159,3.73385727,2471.1,2470.6,3.64282]
[1730668358929,3.73385727,2471.1,2470.7,0.04233213]
[1730668361364,0.09168727,2471.1,2470.7,7.32769213]
[1730668361585,0.09168727,2471.1,2470.7,3.68501213]
[1730668361782,3.6421,2471.1,2470.7,3.68501213]
[1730668361957,0.09168727,2471.0,2470.7,3.68501213]
[1730668362162,0.09168727,2471.0,2470.7,7.32762213]
[1730668362469,0.09168727,2471.0,2470.7,3.68494213]
[1730668362850,0.09168727,2471.1,2470.7,7.32755213]
[1730668363562,0.09168727,2471.1,2470.8,3.64254]
[1730668363763,0.09168727,2471.1,2470.9,0.04235558]
[1730668364365,7.37596727,2471.1,2470.6,3.64282]
[1730668364686,3.73378727,2471.1,2470.7,3.68502776]
[1730668365758,0.09168727,2471.1,2470.7,3.68502776]
[1730668366087,0.09168727,2471.2,2470.9,3.64229]
[1730668366499,0.09168727,2471.2,2471.0,0.0424767]
[1730668367013,0.09168727,2471.2,2471.0,3.6847167]
[1730668367368,0.09168727,2471.3,2471.0,3.6847167]
[1730668367866,1.36300007,2471.3,2471.0,3.6847167]
[1730668368500,0.09168727,2471.3,2471.0,0.0424767]
[1730668368681,1.70666834,2471.5,2471.3,3.6418]
[1730668368682,1.37458467,2471.5,2471.3,3.6418]
[1730668369016,1.37458467,2471.5,2471.4,3.64166]
[1730668369017,0.0115846,2471.5,2471.4,3.64166]
[1730668369179,0.0115846,2471.5,2471.4,3.68411003]
[1730668369788,0.0115846,2471.5,2471.4,0.04245003]
[1730668371815,0.0115846,2471.5,2471.4,3.68411003]
[1730668374274,0.0115846,2471.5,2471.4,0.04245003]
[1730668374503,0.10327187,2471.5,2471.4,0.04245003]
[1730668374706,0.10327187,2471.5,2471.2,3.64184]
[1730668375118,0.10327187,2471.5,2471.3,0.04226252]
[1730668375408,0.10327187,2471.5,2471.2,3.64184]
[1730668375409,1.37458467,2471.5,2471.2,3.64184]
[1730668375613,1.37458467,2471.5,2471.3,0.04226252]
[1730668375799,1.37458467,2471.5,2471.2,3.64184]
[1730668376199,1.37458467,2471.5,2471.3,0.04226252]
[1730668376612,1.37458467,2471.5,2471.2,3.64184]
[1730668376781,1.37458467,2471.5,2471.3,0.04226252]
[1730668377113,1.37458467,2471.5,2471.2,3.64184]
[1730668377476,1.37458467,2471.5,2471.3,0.04226252]
[1730668377813,1.37458467,2471.5,2471.2,7.28372]
[1730668378114,1.37458467,2471.5,2471.3,0.04226252]
[1730668378614,1.2828974,2471.5,2471.4,3.64166]
[1730668378823,1.2828974,2471.5,2471.4,4.45956]
[1730668378977,1.2828974,2471.5,2471.4,4.50164671]
[1730668379679,0.0115846,2471.5,2471.4,4.50164671]
[1730668382837,0.0115846,2471.5,2471.4,0.04208671]
[1730668383508,0.0115846,2471.5,2471.4,3.68374671]
[1730668383703,0.0115846,2471.5,2471.4,0.04208671]
[1730668384206,0.0115846,2471.5,2471.3,3.64178]
[1730668384613,0.0115846,2471.5,2471.4,0.04195784]
[1730668385622,3.6530946,2471.5,2471.0,3.64214]
[1730668385817,0.09168727,2471.4,2471.1,0.04202032]
[1730668388983,0.09168727,2471.4,2471.1,3.68411032]
[1730668389694,0.09168727,2471.4,2471.2,3.64194]
[1730668389892,0.10327187,2471.5,2471.2,3.64183]
[1730668390078,0.10327187,2471.5,2471.4,3.64166]
[1730668390282,0.0115846,2471.5,2471.4,3.68379748]
[1730668391849,0.0115846,2471.5,2471.4,4.43729748]
[1730668392738,0.0115846,2471.5,2471.4,4.51821597]
[1730668393111,0.0115846,2471.5,2471.4,7.43729748]
[1730668397419,0.0115846,2471.5,2471.4,4.43729748]
[1730668397632,0.0115846,2471.5,2471.4,3.68379748]
[1730668399012,0.0115846,2471.5,2471.4,0.04213748]
[1730668399361,3.6530946,2471.5,2471.1,3.64207]
[1730668399514,0.09168727,2471.4,2471.1,3.64207]
[1730668399911,0.8106,2471.3,2470.9,7.28461]
[1730668400114,0.8106,2471.3,2470.9,3.64228]
[1730668400115,0.09168727,2471.2,2470.9,3.64228]
[1730668400514,0.09168727,2471.2,2470.8,3.64241]
[1730668401156,0.09168727,2471.2,2470.9,3.64236]
[1730668402920,0.09168727,2471.2,2470.8,3.64241]
[1730668403125,0.09168727,2471.2,2470.8,7.28487]
[1730668403457,0.09168727,2471.2,2470.8,3.64241]
[1730668403622,0.09168727,2471.2,2470.9,3.64237]
[1730668403954,0.09168727,2471.2,2471.0,0.04060031]
[1730668404157,4.31519928,2471.2,2471.0,0.04060031]
[1730668404361,0.7802,2471.0,2470.6,3.64274]
[1730668404658,0.09168727,2470.9,2470.7,3.64265]
[1730668406138,0.7802,2471.0,2470.8,3.64254]
[1730668407122,0.7802,2471.0,2470.6,3.64273]
[1730668407356,0.09168727,2470.9,2470.4,3.64301]
[1730668407557,0.7802,2470.8,2470.4,7.28606]
[1730668407725,0.09168727,2470.7,2470.5,3.64297]
[1730668408250,0.09168727,2470.7,2470.4,3.64301]
[1730668408571,0.09168727,2470.7,2470.5,3.64293]
[1730668410272,0.09168727,2470.7,2470.4,3.64301]
[1730668410525,3.73445727,2470.7,2470.2,3.64332]
[1730668410683,3.73445727,2470.7,2470.2,7.28666]
[1730668411020,3.73445727,2470.7,2470.3,3.64325]
[1730668411526,0.09168727,2470.7,2470.3,3.64325]
[1730668411690,0.09168727,2470.7,2470.4,3.64313]
[1730668411889,0.09168727,2470.7,2470.5,3.64297]
[1730668412107,0.09168727,2470.9,2470.3,0.7775]
[1730668412396,2.0515128,2471.0,2470.8,3.64243]
[1730668412397,0.09168727,2471.0,2470.8,3.64243]
[1730668412838,0.09168727,2471.1,2470.9,3.64239]
[1730668413029,0.09168727,2471.1,2470.8,3.64243]
[1730668413516,0.09168727,2471.1,2470.9,0.04111525]
[1730668417143,0.09168727,2471.1,2470.8,3.64243]
[1730668417545,0.09168727,2471.1,2470.9,0.04111525]
[1730668419034,0.09168727,2471.1,2470.7,3.64268]
[1730668419232,0.09168727,2471.1,2470.8,0.04111525]
[1730668419425,0.09168727,2471.1,2470.7,3.64268]
[1730668419635,0.09168727,2471.1,2470.8,0.04111525]
[1730668419807,0.09168727,2471.1,2470.7,3.64268]
[1730668420131,3.64233,2471.0,2470.8,0.04111525]
[1730668420340,0.09168727,2470.9,2470.8,0.04111525]
[1730668420528,0.09168727,2471.1,2470.7,3.64259]
[1730668420726,0.09168727,2471.1,2470.8,0.04112696]
[1730668421033,3.73388727,2471.1,2470.5,3.64294]
[1730668421416,3.73388727,2471.1,2470.6,3.68392696]
[1730668424528,0.09168727,2471.1,2470.8,4.41808]
[1730668424735,0.09168727,2471.2,2470.8,4.41808]
[1730668424954,0.09168727,2471.2,2470.9,0.04109573]
[1730668425461,0.09168727,2471.2,2470.9,3.64232]
[1730668425762,0.09168727,2471.3,2471.0,0.04109573]
[1730668427469,5.00488007,2471.3,2471.0,0.04109573]
[1730668427759,6.12296091,2471.3,2470.8,4.41808]
[1730668428058,4.85164811,2471.3,2470.8,4.41808]
[1730668428257,3.64195,2471.2,2470.9,0.04091468]
[1730668428552,0.09168727,2471.1,2470.9,0.04091468]
[1730668428755,4.46985,2471.0,2470.9,0.04091468]
[1730668428916,4.46985,2471.0,2470.4,3.64301]
[1730668428917,3.6424,2470.9,2470.4,3.64301]
[1730668429132,3.73425727,2470.8,2470.4,3.64301]
[1730668429837,0.09168727,2470.8,2470.4,3.64301]
[1730668430038,3.73409727,2470.9,2470.4,3.64301]
[1730668431870,7.37660727,2470.9,2470.4,3.64301]
[1730668432076,3.73409727,2470.9,2470.4,3.64301]
[1730668432581,0.09168727,2471.0,2470.7,3.64262]
[1730668432914,5.7407828,2471.2,2470.8,3.64245]
[1730668432915,0.09168727,2471.1,2470.8,3.64245]
[1730668433069,0.09168727,2471.1,2470.7,4.41882]
[1730668433872,0.09168727,2471.1,2470.8,3.68215613]
[1730668435973,0.09168727,2471.1,2470.8,0.03961613]
[1730668436268,0.09168727,2471.1,2470.7,4.4188]
[1730668436467,0.09168727,2471.1,2470.8,0.03961613]
[1730668436676,0.09168727,2471.1,2470.7,8.06142]
[1730668436884,0.09168727,2471.1,2470.8,0.03961613]
[1730668437046,0.09168727,2471.1,2470.7,4.4188]
[1730668437248,0.09168727,2471.1,2470.8,0.03961613]
[1730668437483,0.09168727,2471.1,2470.8,3.64253]
[1730668437644,0.09168727,2471.1,2470.9,0.03961613]
[1730668438278,0.09168727,2471.1,2470.7,4.4188]
[1730668438452,0.09168727,2471.1,2470.8,0.03961613]
[1730668438659,0.09168727,2471.1,2470.7,4.4188]
[1730668438980,0.09168727,2471.1,2470.8,0.03961613]
[1730668439349,0.09168727,2471.1,2470.7,8.06142]
[1730668439545,0.09168727,2471.1,2470.9,0.03961613]
[1730668439746,0.09168727,2471.1,2470.7,8.06142]
[1730668439964,0.09168727,2471.1,2471.0,0.03961613]
[1730668440173,0.09168727,2471.1,2470.7,4.4188]
[1730668440489,3.73378727,2471.1,2470.7,4.4188]
[1730668440697,3.73378727,2471.1,2470.8,0.03953029]
[1730668440991,0.09168727,2471.1,2470.7,7.28521]
[1730668441294,0.09168727,2471.1,2470.7,3.6426]
[1730668441579,0.09168727,2471.1,2470.8,0.03953029]
[1730668441959,0.09168727,2471.1,2470.7,3.6426]
[1730668442159,0.09168727,2471.1,2470.9,0.03953029]
[1730668442358,0.09168727,2471.1,2470.7,3.6426]
[1730668442562,0.09168727,2471.1,2471.0,0.03953029]
[1730668442771,2.11575545,2471.1,2470.7,3.6426]
[1730668442980,2.11575545,2471.1,2471.0,0.03953029]
[1730668443192,2.11575545,2471.1,2470.7,3.6426]
[1730668443390,2.11575545,2471.1,2471.0,0.03953029]
[1730668443546,5.75785545,2471.1,2470.7,3.6426]